[Event "UKR-ch Women 2020"]
[Site "Kherson"]
[Date "2020.12.12"]
[Round "7.3"]
[White "Petrova, Irina"]
[Black "Shpanko, Nadiia"]
[Result "1/2-1/2"]
[ECO "C15"]
[WhiteElo "2077"]
[BlackElo "2235"]
[Annotator "ChessBase"]
[PlyCount "91"]
[EventDate "2020.12.06"]
[EventType "swiss"]
[EventCountry "UKR"]
[SourceTitle "playchess.com"]
[Source "ChessBase"]
[SourceQuality "1"]
[TimeControl "40/5400+30:1800+30"]

1. e4 {[%emt 0:00:00]} e6 {[%emt 0:00:00]} 2. d4 {[%emt 0:00:33]} d5 {[%emt 0:00:00]} 3. Nc3 {[%emt 0:00:05]} Bb4 {[%emt 0:00:24]} 4. Bd3 {[%emt 0:10:54]} c5 {[%emt 0:09:31]} 5. a3 {[%emt 0:00:10]} Bxc3+ {[%emt 0:04:39]} 6. bxc3 {[%emt 0:00:08]} c4 {[%emt 0:00:03]} 7. Be2 {[%emt 0:05:29]} dxe4 {[%emt 0:00:06]} 8. Bxc4 {[%emt 0:01:26]} Qc7 {[%emt 0:01:06]} 9. Bb5+ {[%emt 0:18:47]} Bd7 {[%emt 0:00:36]} 10. Bxd7+ {[%emt 0:00:06]} Nxd7 {[%emt 0:00:04]} 11. Ne2 {[%emt 0:00:05]} Ngf6 {[%emt 0:00:23]} 12. O-O {[%emt 0:00:25]} Nd5 {[%emt 0:01:38]} 13. Ng3 {[%emt 0:03:28]} N7f6 {[%emt 0:02:58]} 14. Bg5 {[%emt 0:02:10]} Qxc3 {[%emt 0:02:10]} 15. Re1 {[%emt 0:10:59]} Rc8 {[%emt 0:02:32]} 16. Bxf6 {[%emt 0:02:30]} Nxf6 {[%emt 0:00:08]} 17. Qb1 {[%emt 0:09:25]} b6 {[%emt 0:04:27]} 18. Nxe4 {[%emt 0:00:42]} Nxe4 {[%emt 0:00:14]} 19. Rxe4 {[%emt 0:00:03]} O-O {[%emt 0:00:16]} 20. Ra2 {[%emt 0:02:50]} Rc4 {[%emt 0:03:33]} 21. g3 {[%emt 0:03:42]} Rxd4 {[%emt 0:00:31]} 22. Rxd4 {[%emt 0:00:04]} Qxd4 {[%emt 0:00:04]} 23. a4 {[%emt 0:00:07]} f5 {[%emt 0:03:39]} 24. a5 {[%emt 0:03:29]} f4 {[%emt 0:01:59]} 25. Qe1 {[%emt 0:02:47]} Qc4 {[%emt 0:01:49]} 26. Ra1 {[%emt 0:01:12]} h5 {[%emt 0:05:16]} 27. axb6 axb6 {[%emt 0:00:04]} 28. Rb1 {[%emt 0:03:49]} Qc6 {[%emt 0:04:40]} 29. Rb4 {[%emt 0:01:43]} fxg3 {[%emt 0:01:59]} 30. hxg3 {[%emt 0:00:04]} Rf6 {[%emt 0:02:28]} 31. Qe3 {[%emt 0:03:35]} b5 {[%emt 0:05:28]} 32. Qe2 {[%emt 0:01:05]} Rf5 {[%emt 0:07:34]} 33. c4 {[%emt 0:00:11]} bxc4 {[%emt 0:00:46]} 34. Rxc4 {[%emt 0:00:24]} Qd5 {[%emt 0:01:28]} 35. Re4 {[%emt 0:02:52]} Kf7 {[%emt 0:00:17]} 36. Rb4 {[%emt 0:00:19]} Re5 {[%emt 0:03:19]} 37. Rf4+ {[%emt 0:00:09]} Ke7 {[%emt 0:01:11]} 38. Qf3 {[%emt 0:00:28]} Qxf3 {[%emt 0:01:22]} 39. Rxf3 {[%emt 0:00:04]} g5 {[%emt 0:00:07]} 40. Kg2 {[%emt 0:00:00]} h4 {[%emt 0:00:00]} 41. gxh4 {[%emt 0:01:08]} gxh4 {[%emt 0:02:55]} 42. Rf4 {[%emt 0:00:05]} Rg5+ {[%emt 0:00:34]} 43. Kh3 {[%emt 0:00:20]} e5 {[%emt 0:00:14]} 44. Rxh4 {[%emt 0:00:17]} Ke6 {[%emt 0:00:09]} 45. f4 {[%emt 0:00:17]} exf4 {[%emt 0:00:04]} 46. Rxf4 {[%emt 0:00:03]} 1/2-1/2

[Event "UKR-ch Women 2020"]
[Site "Kherson"]
[Date "2020.12.12"]
[Round "7.4"]
[White "Doluhanova, Evgeniya"]
[Black "Rakhmangulova, Anastasiya"]
[Result "0-1"]
[ECO "A10"]
[WhiteElo "2229"]
[BlackElo "2132"]
[Annotator "NA"]
[PlyCount "124"]
[EventDate "2020.12.06"]
[EventType "swiss"]
[EventCountry "UKR"]
[SourceTitle "playchess.com"]
[Source "ChessBase"]
[SourceQuality "1"]
[TimeControl "40/5400+30:1800+30"]

1. c4 {[%emt 0:00:00]} g6 {[%emt 0:00:00]} 2. Nc3 {[%emt 0:02:53]} Bg7 {[%emt 0:00:00]} 3. e4 {[%emt 0:01:24]} d6 {[%emt 0:00:25]} 4. Nge2 {[%emt 0:00:52]} Nf6 {[%emt 0:04:55]} 5. g3 {[%emt 0:09:00]} O-O {[%emt 0:02:28]} 6. Bg2 {[%emt 0:00:17]} e5 {[%emt 0:00:22]} 7. d4 {[%emt 0:02:42]} Nbd7 {[%emt 0:11:27]} 8. d5 {[%emt 0:04:41]} a6 {[%emt 0:00:22]} 9. h3 {[%emt 0:07:41]} b5 {[%emt 0:01:16]} 10. cxb5 {[%emt 0:01:56]} axb5 {[%emt 0:00:04]} 11. Nxb5 {[%emt 0:01:09]} Ba6 {[%emt 0:00:06]} 12. Nec3 {[%emt 0:10:56]} Nc5 {[%emt 0:02:46]} 13. Be3 {[%emt 0:18:14]} Ncxe4 {[%emt 0:09:58]} 14. a4 {[%emt 0:06:52]} Nxc3 {[%emt 0:03:05]} 15. bxc3 {[%emt 0:01:21]} Nd7 {[%emt 0:02:32]} 16. O-O {[%emt 0:07:39]} f5 {[%emt 0:03:06]} 17. Qd2 {[%emt 0:04:20]} Rf7 {[%emt 0:09:17]} 18. f4 {[%emt 0:02:22]} Nb6 {[%emt 0:05:43]} 19. Qc2 {[%emt 0:11:49]} Nc4 {[%emt 0:03:35]} 20. Bf2 {[%emt 0:00:17]} e4 {[%emt 0:02:05]} 21. Rfd1 {[%emt 0:02:11]} e3 {[%emt 0:05:04]} 22. Be1 {[%emt 0:00:05]} Re7 {[%emt 0:00:03]} 23. Qe2 {[%emt 0:01:28]} Nb6 {[%emt 0:00:41]} 24. a5 {[%emt 0:00:49]} Nd7 {[%emt 0:04:50]} 25. Rab1 {[%emt 0:00:11]} Bxb5 {[%emt 0:02:09]} 26. Rxb5 {[%emt 0:00:10]} Re8 {[%emt 0:10:24]} 27. Qc4 {[%emt 0:00:27]} Qe7 {[%emt 0:02:53]} 28. Qe2 {[%emt 0:00:54]} Nc5 {[%emt 0:01:38]} 29. c4 {[%emt 0:00:15]} Qd7 {[%emt 0:01:59]} 30. Kh2 {[%emt 0:00:59]} Bf6 {[%emt 0:03:57]} 31. Rdb1 {[%emt 0:00:31]} Qg7 {[%emt 0:00:14]} 32. Bb4 {[%emt 0:00:38]} Na6 {[%emt 0:01:09]} 33. Ba3 {[%emt 0:00:27]} Bd4 {[%emt 0:01:01]} 34. Rd1 {[%emt 0:00:28]} Nc5 {[%emt 0:02:03]} 35. Bb4 {[%emt 0:00:36]} Na4 {[%emt 0:00:29]} 36. Rd3 {[%emt 0:00:40]} Nc5 {[%emt 0:02:45]} 37. Rd1 {[%emt 0:00:19]} Ra7 {[%emt 0:00:08]} 38. Be1 {[%emt 0:00:19]} Bc3 {[%emt 0:00:22]} 39. Rc1 {[%emt 0:00:46]} Bxe1 {[%emt 0:00:21]} 40. Rxe1 {[%emt 0:00:00]} Qc3 {[%emt 0:00:00]} 41. h4 {[%emt 0:08:06]} Rxa5 {[%emt 0:04:27]} 42. Rxa5 {[%emt 0:00:18]} Qxa5 {[%emt 0:00:04]} 43. h5 {[%emt 0:00:14]} Nd3 {[%emt 0:15:32]} 44. Rb1 {[%emt 0:16:11]} Qd2 {[%emt 0:01:05]} 45. Bf3 {[%emt 0:00:22]} Ra8 {[%emt 0:05:57]} 46. Qxd2 {[%emt 0:02:37]} exd2 {[%emt 0:00:04]} 47. hxg6 {[%emt 0:04:42]} hxg6 {[%emt 0:01:10]} 48. Kg2 {[%emt 0:01:41]} Ra2 {[%emt 0:04:52]} 49. Bd1 {[%emt 0:00:25]} Nc5 {[%emt 0:01:33]} 50. Kf1 {[%emt 0:01:06]} Ne4 {[%emt 0:02:13]} 51. Rb3 {[%emt 0:00:11]} Ra1 {[%emt 0:00:13]} 52. Ke2 {[%emt 0:00:05]} Rc1 {[%emt 0:00:04]} 53. Rb8+ {[%emt 0:01:04]} Kf7 {[%emt 0:00:05]} 54. Rb4 {[%emt 0:00:34]} Ke7 {[%emt 0:00:28]} 55. g4 {[%emt 0:00:30]} fxg4 {[%emt 0:02:33]} 56. c5 {[%emt 0:00:24]} Nc3+ {[%emt 0:00:03]} 57. Kxd2 {[%emt 0:00:04]} Rxd1+ {[%emt 0:00:03]} 58. Kxc3 {[%emt 0:00:05]} dxc5 {[%emt 0:01:01]} 59. Re4+ {[%emt 0:00:08]} Kf6 {[%emt 0:00:16]} 60. Re5 {[%emt 0:01:54]} Rd4 {[%emt 0:00:18]} 61. Re6+ {[%emt 0:00:27]} Kf5 {[%emt 0:00:11]} 62. Re7 {[%emt 0:00:10]} g3 {[%emt 0:00:45]} 0-1

[Event "UKR-ch Women 2020"]
[Site "Kherson"]
[Date "2020.12.12"]
[Round "7.5"]
[White "Dubovyk, Anastasiia"]
[Black "Hrebenshchykova, Yelyzaveta"]
[Result "0-1"]
[ECO "B59"]
[WhiteElo "1971"]
[BlackElo "2083"]
[Annotator "NA"]
[PlyCount "70"]
[EventDate "2020.12.06"]
[EventType "swiss"]
[EventCountry "UKR"]
[SourceTitle "playchess.com"]
[Source "ChessBase"]
[SourceQuality "1"]
[TimeControl "40/5400+30:1800+30"]

1. e4 {[%emt 0:00:00]} c5 {[%emt 0:00:00]} 2. Nf3 {[%emt 0:00:01]} d6 {[%emt 0:00:18]} 3. d4 {[%emt 0:00:43]} Nf6 {[%emt 0:01:42]} 4. Nc3 {[%emt 0:00:43]} cxd4 {[%emt 0:00:08]} 5. Nxd4 {[%emt 0:00:08]} Nc6 {[%emt 0:01:54]} 6. Be2 {[%emt 0:00:43]} e5 {[%emt 0:12:41]} 7. Nb3 {[%emt 0:00:43]} Be6 {[%emt 0:05:27]} 8. Nd5 {[%emt 0:07:33]} Nxe4 {[%emt 0:10:52]} 9. c4 {[%emt 0:12:44]} h6 {[%emt 0:13:58]} 10. O-O {[%emt 0:02:07]} Be7 {[%emt 0:03:40]} 11. f4 {[%emt 0:14:31]} O-O {[%emt 0:06:37]} 12. f5 {[%emt 0:07:08]} Bxd5 {[%emt 0:00:42]} 13. cxd5 {[%emt 0:00:21]} Qb6+ {[%emt 0:00:39]} 14. Kh1 {[%emt 0:00:11]} Nb4 {[%emt 0:12:36]} 15. a3 {[%emt 0:02:52]} Na6 {[%emt 0:00:08]} 16. Bxa6 {[%emt 0:04:25]} bxa6 {[%emt 0:04:12]} 17. Qf3 {[%emt 0:18:16]} Nf6 {[%emt 0:00:43]} 18. a4 {[%emt 0:04:23]} Rac8 {[%emt 0:02:04]} 19. Ra3 {[%emt 0:03:56]} Rc2 {[%emt 0:02:30]} 20. Na1 {[%emt 0:01:25]} Rc4 {[%emt 0:03:04]} 21. b3 {[%emt 0:08:41]} Rc7 {[%emt 0:01:05]} 22. Be3 {[%emt 0:03:08]} Qb7 {[%emt 0:01:11]} 23. Rd1 {[%emt 0:04:35]} Rc3 {[%emt 0:01:52]} 24. h3 {[%emt 0:00:39]} Nxd5 {[%emt 0:06:25]} 25. Qxd5 {[%emt 0:01:05]} Qxd5 {[%emt 0:00:04]} 26. Rxd5 {[%emt 0:00:07]} Rxe3 {[%emt 0:00:02]} 27. Nc2 {[%emt 0:00:13]} Rc3 {[%emt 0:01:13]} 28. Nb4 {[%emt 0:01:41]} Rb8 {[%emt 0:00:44]} 29. Nd3 {[%emt 0:00:40]} e4 {[%emt 0:01:26]} 30. Nf4 {[%emt 0:00:31]} Bg5 {[%emt 0:01:41]} 31. Ne2 {[%emt 0:00:26]} Rc2 {[%emt 0:00:32]} 32. Nd4 {[%emt 0:00:32]} Rd2 {[%emt 0:02:13]} 33. g3 {[%emt 0:00:45]} e3 {[%emt 0:00:31]} 34. Ra1 {[%emt 0:00:22]} e2 {[%emt 0:00:19]} 35. Re1 {[%emt 0:00:40]} Rd1 {[%emt 0:00:12]} 0-1

[Event "UKR-ch Women 2020"]
[Site "Kherson"]
[Date "2020.12.12"]
[Round "7.6"]
[White "Tsirulnik, Maritsa"]
[Black "Berdnyk, Mariia"]
[Result "0-1"]
[ECO "E01"]
[WhiteElo "2139"]
[BlackElo "2324"]
[Annotator "ChessBase"]
[PlyCount "73"]
[EventDate "2020.12.06"]
[EventType "swiss"]
[EventCountry "UKR"]
[SourceTitle "playchess.com"]
[Source "ChessBase"]
[SourceQuality "1"]
[TimeControl "40/5400+30:1800+30"]

1. d4 {[%emt 0:00:00]} Nf6 {[%emt 0:00:00]} 2. c4 {[%emt 0:00:00]} e6 {[%emt 0:00:00]} 3. g3 {[%emt 0:00:00]} d5 {[%emt 0:00:00]} 4. Bg2 {[%emt 0:00:00]} dxc4 {[%emt 0:00:00]} 5. Qa4+ {[%emt 0:00:00]} c6 {[%emt 0:00:00]} 6. Qxc4 {[%emt 0:00:02]} b5 {[%emt 0:00:00]} 7. Qc2 {[%emt 0:01:59]} Bb7 {[%emt 0:00:00]} 8. Nf3 {[%emt 0:01:40]} Nbd7 {[%emt 0:00:06]} 9. Ne5 {[%emt 0:16:07]} Nxe5 {[%emt 0:15:38]} 10. dxe5 {[%emt 0:00:06]} Nd5 {[%emt 0:00:09]} 11. O-O {[%emt 0:03:19]} Be7 {[%emt 0:01:45]} 12. Nc3 {[%emt 0:09:11]} Qb6 {[%emt 0:07:07]} 13. Nxd5 {[%emt 0:15:46]} cxd5 {[%emt 0:04:05]} 14. Be3 {[%emt 0:00:07]} Qa5 {[%emt 0:02:28]} 15. Rfc1 {[%emt 0:03:12]} Rc8 {[%emt 0:00:35]} 16. Qd3 {[%emt 0:00:12]} O-O {[%emt 0:02:01]} 17. Qd4 {[%emt 0:02:53]} a6 {[%emt 0:06:00]} 18. Qa7 {[%emt 0:04:13]} Rb8 {[%emt 0:06:24]} 19. Bb6 {[%emt 0:02:53]} Qd2 {[%emt 0:04:26]} 20. Rc7 {[%emt 0:00:35]} Bg5 {[%emt 0:05:16]} 21. f4 {[%emt 0:07:05]} Bh6 {[%emt 0:00:22]} 22. Rxb7 {[%emt 0:01:11]} Ra8 23. Qxa8 {[%emt 0:02:55]} Rxa8 {[%emt 0:00:30]} 24. Rc7 {[%emt 0:00:05]} g5 {[%emt 0:03:19]} 25. Rac1 {[%emt 0:01:28]} Qxe2 {[%emt 0:05:44]} 26. Rc8+ {[%emt 0:05:37]} Rxc8 {[%emt 0:00:05]} 27. Rxc8+ {[%emt 0:00:04]} Kg7 {[%emt 0:01:02]} 28. Bf1 {[%emt 0:04:10]} Qd1 {[%emt 0:01:43]} 29. Bd8 {[%emt 0:07:37]} Kg6 {[%emt 0:02:49]} 30. Bf6 {[%emt 0:02:30]} Kf5 {[%emt 0:00:55]} 31. Kf2 {[%emt 0:03:22]} Qd2+ {[%emt 0:06:24]} 32. Be2 {[%emt 0:01:28]} gxf4 {[%emt 0:01:58]} 33. Rc3 {[%emt 0:05:22]} fxg3+ {[%emt 0:01:45]} 34. Rxg3 {[%emt 0:00:19]} Bf4 {[%emt 0:02:03]} 35. Rd3 {[%emt 0:01:07]} Qxb2 {[%emt 0:01:28]} 36. Kf3 {[%emt 0:00:48]} Bxe5 {[%emt 0:01:22]} 37. Rb3 {[%emt 0:00:33]} 0-1

[Event "UKR-ch Women 2020"]
[Site "Kherson"]
[Date "2020.12.12"]
[Round "7.7"]
[White "Zinkevich, Julia"]
[Black "Yeshchenko, Uliana"]
[Result "1/2-1/2"]
[ECO "A05"]
[WhiteElo "2178"]
[BlackElo "1872"]
[Annotator "ChessBase"]
[PlyCount "135"]
[EventDate "2020.12.06"]
[EventType "swiss"]
[EventCountry "UKR"]
[SourceTitle "playchess.com"]
[Source "ChessBase"]
[SourceQuality "1"]
[TimeControl "40/5400+30:1800+30"]

1. Nf3 {[%emt 0:07:39]} Nf6 {[%emt 0:00:00]} 2. g3 {[%emt 0:00:06]} g6 {[%emt 0:00:00]} 3. Bg2 {[%emt 0:00:03]} Bg7 {[%emt 0:00:00]} 4. O-O {[%emt 0:00:05]} d5 {[%emt 0:00:29]} 5. d3 {[%emt 0:00:32]} O-O {[%emt 0:01:19]} 6. Nbd2 {[%emt 0:03:21]} Nc6 {[%emt 0:03:01]} 7. e4 {[%emt 0:06:47]} dxe4 {[%emt 0:02:30]} 8. dxe4 {[%emt 0:09:47]} a5 {[%emt 0:08:28]} 9. Qe2 {[%emt 0:09:00]} Bg4 {[%emt 0:15:43]} 10. h3 {[%emt 0:16:45]} Nd4 {[%emt 0:06:24]} 11. Qc4 {[%emt 0:05:37]} Nxf3+ {[%emt 0:04:09]} 12. Nxf3 {[%emt 0:00:21]} Bxf3 {[%emt 0:01:05]} 13. Bxf3 {[%emt 0:00:06]} e5 {[%emt 0:00:38]} 14. Be3 {[%emt 0:03:41]} c6 {[%emt 0:05:52]} 15. Bc5 {[%emt 0:02:27]} Re8 {[%emt 0:00:17]} 16. Rad1 {[%emt 0:00:21]} Qc8 {[%emt 0:00:45]} 17. Kh2 {[%emt 0:03:08]} b5 {[%emt 0:02:57]} 18. Qe2 {[%emt 0:02:56]} Bf8 {[%emt 0:02:59]} 19. Be3 {[%emt 0:04:49]} Qc7 {[%emt 0:04:26]} 20. c4 {[%emt 0:08:33]} Qb7 {[%emt 0:06:39]} 21. b3 {[%emt 0:02:39]} Nd7 {[%emt 0:06:12]} 22. cxb5 {[%emt 0:01:01]} cxb5 {[%emt 0:00:07]} 23. Rd5 {[%emt 0:00:58]} Rab8 {[%emt 0:01:26]} 24. a4 {[%emt 0:04:07]} bxa4 {[%emt 0:01:31]} 25. bxa4 {[%emt 0:00:01]} Bb4 {[%emt 0:00:57]} 26. Rb5 {[%emt 0:04:00]} Qa8 {[%emt 0:04:56]} 27. Rd1 {[%emt 0:00:21]} Rbd8 {[%emt 0:02:25]} 28. Bg5 {[%emt 0:02:48]} f6 {[%emt 0:01:47]} 29. Qc4+ {[%emt 0:00:46]} Kh8 {[%emt 0:03:26]} 30. Rxd7 {[%emt 0:00:42]} fxg5 {[%emt 0:00:09]} 31. Rbb7 {[%emt 0:00:42]} Rxd7 {[%emt 0:00:21]} 32. Rxd7 {[%emt 0:00:01]} Re7 {[%emt 0:01:14]} 33. Rxe7 {[%emt 0:00:49]} Bxe7 {[%emt 0:00:05]} 34. Qe6 {[%emt 0:00:47]} Qf8 {[%emt 0:00:34]} 35. Qxe5+ {[%emt 0:00:10]} Qf6 {[%emt 0:00:05]} 36. Qb8+ {[%emt 0:00:34]} Kg7 {[%emt 0:00:10]} 37. Kg2 {[%emt 0:00:24]} Qd6 {[%emt 0:02:50]} 38. Qb7 {[%emt 0:00:37]} Qb4 {[%emt 0:01:54]} 39. Qd7 {[%emt 0:00:24]} Qd6 {[%emt 0:01:06]} 40. Qb7 {[%emt 0:00:00]} Qb4 {[%emt 0:00:00]} 41. Qc7 {[%emt 0:12:26]} Qc5 {[%emt 0:01:40]} 42. Qd7 {[%emt 0:02:38]} Qd6 {[%emt 0:01:26]} 43. Qb5 {[%emt 0:01:20]} Qc5 {[%emt 0:04:10]} 44. Qd3 {[%emt 0:02:36]} Bf6 {[%emt 0:01:37]} 45. Qd7+ {[%emt 0:02:50]} Kh6 {[%emt 0:03:39]} 46. Be2 {[%emt 0:03:00]} Bd4 {[%emt 0:03:30]} 47. Qf7 {[%emt 0:06:19]} Qe5 {[%emt 0:01:32]} 48. Qf8+ {[%emt 0:00:34]} Qg7 {[%emt 0:00:04]} 49. Qf3 {[%emt 0:00:26]} Qf6 {[%emt 0:00:49]} 50. Qxf6 {[%emt 0:00:38]} Bxf6 {[%emt 0:00:04]} 51. f4 {[%emt 0:00:53]} gxf4 {[%emt 0:00:11]} 52. gxf4 {[%emt 0:00:02]} Bc3 {[%emt 0:00:28]} 53. Kf3 {[%emt 0:00:39]} g5 {[%emt 0:01:11]} 54. f5 {[%emt 0:02:25]} Kg7 {[%emt 0:00:18]} 55. Kg4 {[%emt 0:00:49]} h6 {[%emt 0:01:18]} 56. Bc4 {[%emt 0:00:23]} Bd4 {[%emt 0:00:27]} 57. Bd5 {[%emt 0:00:22]} Kf6 {[%emt 0:00:34]} 58. Kh5 {[%emt 0:00:29]} Kg7 {[%emt 0:00:12]} 59. Bc6 {[%emt 0:00:19]} Bc3 {[%emt 0:00:13]} 60. Be8 {[%emt 0:00:42]} Bd4 {[%emt 0:00:22]} 61. h4 {[%emt 0:00:57]} gxh4 {[%emt 0:00:15]} 62. Kxh4 {[%emt 0:00:04]} Kf6 {[%emt 0:00:12]} 63. Kh5 {[%emt 0:00:48]} Be3 {[%emt 0:00:13]} 64. Bc6 {[%emt 0:00:20]} Bf4 {[%emt 0:00:09]} 65. Kg4 {[%emt 0:00:22]} Be5 {[%emt 0:00:08]} 66. Bb5 {[%emt 0:00:50]} Bd6 {[%emt 0:00:18]} 67. Kh5 {[%emt 0:00:40]} Bf4 {[%emt 0:00:06]} 68. Kg4 {[%emt 0:00:34]} 1/2-1/2

[Event "UKR-ch Women 2020"]
[Site "Kherson"]
[Date "2020.12.12"]
[Round "7.8"]
[White "Martynkova, Olena"]
[Black "Barchuk, Irina"]
[Result "1-0"]
[ECO "A45"]
[WhiteElo "2222"]
[BlackElo "2075"]
[Annotator "ChessBase"]
[PlyCount "125"]
[EventDate "2020.12.06"]
[EventType "swiss"]
[EventCountry "UKR"]
[SourceTitle "playchess.com"]
[Source "ChessBase"]
[SourceQuality "1"]
[TimeControl "40/5400+30:1800+30"]

1. d4 {[%emt 0:00:00]} Nf6 {[%emt 0:00:00]} 2. g3 {[%emt 0:00:00]} g6 {[%emt 0:00:00]} 3. Bg2 {[%emt 0:00:08]} Bg7 {[%emt 0:00:00]} 4. e4 {[%emt 0:00:22]} d6 {[%emt 0:01:52]} 5. Nc3 {[%emt 0:01:43]} O-O {[%emt 0:00:20]} 6. Nge2 {[%emt 0:00:30]} e5 {[%emt 0:05:47]} 7. O-O {[%emt 0:00:47]} exd4 {[%emt 0:09:20]} 8. Nxd4 {[%emt 0:00:21]} Re8 {[%emt 0:00:15]} 9. h3 {[%emt 0:01:50]} Nbd7 {[%emt 0:00:10]} 10. Nb3 {[%emt 0:09:17]} Nb6 {[%emt 0:04:05]} 11. a4 {[%emt 0:05:06]} a6 {[%emt 0:07:38]} 12. a5 {[%emt 0:08:20]} Nc4 {[%emt 0:00:13]} 13. f4 {[%emt 0:06:38]} c6 {[%emt 0:01:55]} 14. Ra4 {[%emt 0:09:14]} b5 {[%emt 0:02:17]} 15. axb6 {[%emt 0:03:23]} Nxb6 {[%emt 0:00:41]} 16. Ra1 {[%emt 0:10:02]} Qc7 {[%emt 0:02:09]} 17. Na5 {[%emt 0:04:27]} Be6 {[%emt 0:05:38]} 18. Kh2 {[%emt 0:04:04]} Rad8 {[%emt 0:03:47]} 19. Qe2 {[%emt 0:14:37]} Bc8 {[%emt 0:02:20]} 20. Qf2 {[%emt 0:04:17]} d5 {[%emt 0:02:20]} 21. e5 {[%emt 0:01:05]} Nfd7 {[%emt 0:00:09]} 22. Rd1 {[%emt 0:03:06]} f6 {[%emt 0:02:07]} 23. Nxc6 {[%emt 0:04:36]} Qxc6 {[%emt 0:01:46]} 24. Nxd5 {[%emt 0:00:04]} Qe6 {[%emt 0:08:51]} 25. Nc7 {[%emt 0:00:18]} Qe7 {[%emt 0:00:58]} 26. Nxe8 {[%emt 0:00:45]} Rxe8 {[%emt 0:00:10]} 27. Be3 {[%emt 0:01:06]} Qb4 {[%emt 0:01:43]} 28. c3 {[%emt 0:00:41]} Qb5 {[%emt 0:01:01]} 29. exf6 {[%emt 0:03:20]} Bxf6 {[%emt 0:00:16]} 30. Re1 {[%emt 0:02:06]} Rf8 {[%emt 0:07:05]} 31. Rad1 {[%emt 0:02:12]} Nc4 {[%emt 0:01:14]} 32. Bd4 {[%emt 0:00:38]} a5 {[%emt 0:06:04]} 33. Bxf6 {[%emt 0:00:54]} Nxf6 {[%emt 0:00:07]} 34. Rd4 {[%emt 0:00:30]} Bd7 {[%emt 0:07:23]} 35. Bf1 {[%emt 0:00:28]} Rc8 {[%emt 0:00:56]} 36. Qe2 {[%emt 0:00:32]} Qxb2 {[%emt 0:03:17]} 37. Rxc4 {[%emt 0:00:22]} Qxe2+ {[%emt 0:00:05]} 38. Bxe2 {[%emt 0:00:04]} Re8 {[%emt 0:00:04]} 39. Rd4 {[%emt 0:00:22]} Kg7 {[%emt 0:00:19]} 40. Rdd1 {[%emt 0:00:00]} Bf5 {[%emt 0:00:00]} 41. Bb5 {[%emt 0:05:52]} Rc8 {[%emt 0:01:20]} 42. g4 {[%emt 0:03:26]} Bc2 {[%emt 0:00:28]} 43. Rd2 {[%emt 0:03:03]} Bb3 {[%emt 0:00:31]} 44. Re7+ {[%emt 0:04:05]} Kf8 {[%emt 0:00:08]} 45. Ra7 {[%emt 0:00:11]} h5 {[%emt 0:02:17]} 46. f5 {[%emt 0:03:44]} gxf5 {[%emt 0:00:32]} 47. Rf2 {[%emt 0:03:35]} Be6 {[%emt 0:02:16]} 48. gxf5 {[%emt 0:02:54]} Bf7 {[%emt 0:02:04]} 49. Rxa5 {[%emt 0:04:23]} Ne4 {[%emt 0:01:04]} 50. Rc2 {[%emt 0:01:22]} Rxc3 {[%emt 0:01:47]} 51. Rxc3 {[%emt 0:00:04]} Nxc3 {[%emt 0:00:02]} 52. Bc6 {[%emt 0:00:16]} Kg7 {[%emt 0:01:09]} 53. Bf3 {[%emt 0:00:46]} Kf6 {[%emt 0:00:55]} 54. Kg3 {[%emt 0:00:17]} Nb1 {[%emt 0:00:26]} 55. Kf4 {[%emt 0:00:44]} Nd2 {[%emt 0:00:06]} 56. Bd5 {[%emt 0:00:32]} Bxd5 {[%emt 0:00:31]} 57. Rxd5 {[%emt 0:00:05]} Nc4 {[%emt 0:00:03]} 58. Rd4 {[%emt 0:00:34]} Na5 {[%emt 0:00:16]} 59. Rd6+ {[%emt 0:00:14]} Kf7 {[%emt 0:00:06]} 60. Kg5 {[%emt 0:00:16]} Nc4 {[%emt 0:00:08]} 61. Rd7+ {[%emt 0:00:11]} Ke8 {[%emt 0:00:05]} 62. Ra7 {[%emt 0:00:52]} Nd6 {[%emt 0:00:09]} 63. Kg6 {[%emt 0:00:18]} 1-0

[Event "UKR-ch Women 2020"]
[Site "Kherson"]
[Date "2020.12.12"]
[Round "7.9"]
[White "Grineva, Marianna"]
[Black "Gaponenko, Inna"]
[Result "1-0"]
[ECO "B21"]
[WhiteElo "2001"]
[BlackElo "2390"]
[Annotator "ChessBase"]
[PlyCount "61"]
[EventDate "2020.12.06"]
[EventType "swiss"]
[EventCountry "UKR"]
[SourceTitle "playchess.com"]
[Source "ChessBase"]
[SourceQuality "1"]
[TimeControl "40/5400+30:1800+30"]

1. e4 {[%emt 0:00:00]} c5 {[%emt 0:00:00]} 2. d4 {[%emt 0:00:00]} cxd4 {[%emt 0:01:28]} 3. c3 {[%emt 0:00:02]} Nf6 {[%emt 0:02:26]} 4. e5 {[%emt 0:00:31]} Nd5 {[%emt 0:00:06]} 5. Nf3 {[%emt 0:00:21]} Nc6 {[%emt 0:05:53]} 6. Bc4 {[%emt 0:01:06]} e6 {[%emt 0:01:00]} 7. O-O {[%emt 0:09:52]} d6 {[%emt 0:13:19]} 8. cxd4 {[%emt 0:01:18]} Be7 {[%emt 0:00:08]} 9. a3 {[%emt 0:00:37]} O-O {[%emt 0:00:42]} 10. Bd3 {[%emt 0:01:10]} dxe5 {[%emt 0:38:13]} 11. dxe5 {[%emt 0:00:26]} Qc7 {[%emt 0:00:07]} 12. Qc2 {[%emt 0:07:09]} g6 {[%emt 0:02:57]} 13. Re1 {[%emt 0:01:19]} Rd8 {[%emt 0:04:20]} 14. Nbd2 {[%emt 0:10:58]} Bd7 {[%emt 0:02:09]} 15. Nf1 {[%emt 0:07:18]} Rac8 {[%emt 0:01:56]} 16. Qe2 {[%emt 0:02:04]} Na5 {[%emt 0:03:25]} 17. Bh6 {[%emt 0:05:24]} Nb3 {[%emt 0:03:37]} 18. Rad1 {[%emt 0:03:04]} Ba4 {[%emt 0:00:52]} 19. h4 {[%emt 0:14:36]} Qb6 {[%emt 0:05:01]} 20. Rb1 {[%emt 0:11:08]} Nd4 {[%emt 0:00:43]} 21. Qe4 {[%emt 0:03:49]} Nxf3+ {[%emt 0:02:13]} 22. Qxf3 {[%emt 0:00:36]} Bc2 {[%emt 0:01:43]} 23. Bxc2 {[%emt 0:05:08]} Rxc2 {[%emt 0:00:02]} 24. Ne3 {[%emt 0:03:25]} Rxb2 {[%emt 0:05:12]} 25. Nxd5 {[%emt 0:02:45]} Rxd5 {[%emt 0:00:02]} 26. Rbc1 {[%emt 0:01:42]} Bxh4 {[%emt 0:03:54]} 27. Rc8+ {[%emt 0:03:10]} Rd8 {[%emt 0:00:15]} 28. Be3 {[%emt 0:00:49]} Qa5 {[%emt 0:01:38]} 29. Rec1 {[%emt 0:01:59]} Qxe5 {[%emt 0:00:31]} 30. Qd1 {[%emt 0:01:12]} Bxf2+ {[%emt 0:00:35]} 31. Bxf2 {[%emt 0:00:19]} 1-0